fUST/lending_fUST_20250314
["ID","MTS","AMOUNT","RATE_DAILY","PERIOD"]
[356075318,1741883441849,-611.36,0.00013698,2]
[356075319,1741883441858,-500.0,0.00013698,2]
[356075320,1741883441868,-500.0,0.00013698,2]
[356075321,1741883441877,-500.0,0.00013698,2]
[356075322,1741883441887,-500.0,0.00013698,2]
[356075323,1741883441897,-500.0,0.00013698,2]
[356075324,1741883441906,-852.02,0.00013698,2]
[356075325,1741883441915,-528.4574453,0.00013698,2]
[356075326,1741883441925,-500.0,0.00013698,2]
[356075327,1741883441934,-1607.15,0.00013698,2]
[356075328,1741883441944,-500.0,0.00013698,2]
[356075329,1741883441953,-500.0,0.00013698,2]
[356075330,1741883441963,-500.0,0.00013698,2]
[356075331,1741883441972,-500.0,0.00013698,2]
[356075332,1741883441982,-1905.41,0.00013698,2]
[356075333,1741883441991,-322.56649015,0.00013698,2]
[356075334,1741883442001,-500.0,0.00013698,2]
[356075335,1741883442010,-500.0,0.00013698,2]
[356075336,1741883442020,-500.0,0.00013698,2]
[356075337,1741883442029,-500.0,0.00013698,2]
[356075338,1741883442038,-556.72500279,0.00013698,2]
[356075339,1741883442048,-267.44815675,0.00013698,2]
[356075340,1741883442058,-619.03,0.00013698,2]
[356075341,1741883442067,-500.0,0.00013698,2]
[356075342,1741883442076,-1253.19,0.00013698,2]
[356075343,1741883442086,-500.0,0.00013698,2]
[356075344,1741883442095,-1815.22,0.00013698,2]
[356075345,1741883442105,-922.41,0.00013698,2]
[356075346,1741883442114,-500.0,0.00013698,2]
[356075347,1741883442124,-2081.37,0.00013698,2]
[356075348,1741883442133,-500.0,0.00013698,2]
[356075349,1741883442143,-151.0,0.00013698,2]
[356075350,1741883442152,-274.502002,0.00013698,2]
[356075351,1741883442162,-500.0,0.00013698,2]
[356075352,1741883442171,-2617.28,0.00013698,2]
[356075353,1741883442180,-500.0,0.00013698,2]
[356075354,1741883442190,-500.0,0.00013698,2]
[356075355,1741883442200,-500.0,0.00013698,2]
[356075356,1741883442209,-500.0,0.00013698,2]
[356075357,1741883442219,-500.0,0.00013698,2]
[356075358,1741883442229,-595.18076722,0.00013698,2]
[356075359,1741883442241,-500.0,0.00013698,2]
[356075360,1741883442251,-1064.28,0.00013698,2]
[356075361,1741883442261,-500.0,0.00013698,2]
[356075362,1741883442270,-610.94,0.00013698,2]
[356075363,1741883442280,-500.0,0.00013698,2]
[356075364,1741883442290,-500.0,0.00013698,2]
[356075365,1741883442300,-500.0,0.00013698,2]
[356075366,1741883442309,-500.0,0.00013698,2]
[356075367,1741883442319,-151.0,0.00013698,2]
[356075368,1741883442331,-664.07,0.00013698,2]
[356075369,1741883442340,-151.0,0.00013698,2]
[356075370,1741883442351,-151.0,0.00013698,2]
[356075371,1741883442360,-151.0,0.00013698,2]
[356075372,1741883442371,-151.0,0.00013698,2]
[356075373,1741883442380,-500.0,0.00013698,2]
[356075374,1741883442392,-151.0,0.00013698,2]
[356075375,1741883442402,-163.180145,0.00013698,2]
[356075376,1741883442412,-500.0,0.00013698,2]
[356075377,1741883442422,-500.0,0.00013698,2]
[356075378,1741883442432,-1007.93,0.00013698,2]
[356075379,1741883442442,-500.0,0.00013698,2]
[356075380,1741883442451,-2506.07,0.00013698,2]
[356075381,1741883442461,-500.61077,0.00013698,2]
[356075382,1741883442471,-500.0,0.00013698,2]
[356075383,1741883442480,-500.0,0.00013698,2]
[356075384,1741883442490,-500.0,0.00013698,2]
[356075385,1741883442500,-500.0,0.00013698,2]
[356075386,1741883442509,-500.0,0.00013698,2]
[356075387,1741883442519,-565.76,0.00013698,2]
[356075388,1741883442529,-535.75642959,0.00013698,2]
[356075389,1741883442538,-2051.99,0.00013698,2]
[356075390,1741883442549,-500.0,0.00013698,2]
[356075391,1741883442559,-154.944099,0.00013698,2]
[356075392,1741883442570,-500.0,0.00013698,2]
[356075393,1741883442581,-1252.43,0.00013698,2]
[356075394,1741883442591,-917.86,0.00013698,2]
[356075395,1741883442601,-500.0,0.00013698,2]
[356075396,1741883442611,-500.0,0.00013698,2]
[356075397,1741883442622,-500.0,0.00013698,2]
[356075398,1741883442631,-500.0,0.00013698,2]
[356075399,1741883442641,-151.0,0.00013698,2]
[356075400,1741883442650,-500.0,0.00013698,2]
[356075401,1741883442660,-999.35,0.00013698,2]
[356075402,1741883442670,-500.0,0.00013698,2]
[356075403,1741883442680,-500.0,0.00013698,2]
[356075404,1741883442690,-500.0,0.00013698,2]
[356075405,1741883442700,-500.0,0.00013698,2]
[356075406,1741883442709,-500.0,0.00013698,2]
[356075407,1741883442719,-1000.96,0.00013698,2]
[356075408,1741883442729,-500.0,0.00013698,2]
[356075409,1741883442742,-500.0,0.00013698,2]
[356075410,1741883442752,-500.0,0.00013698,2]
[356075411,1741883442762,-531.4417737,0.00013698,2]
[356075412,1741883442772,-646.73,0.00013698,2]
[356075413,1741883442783,-151.0,0.00013698,2]
[356075414,1741883442794,-500.0,0.00013698,2]
[356075415,1741883442805,-151.0,0.00013698,2]
[356075417,1741883442815,-270.432484,0.00013698,2]
[356075419,1741883442826,-500.0,0.00013698,2]
[356075421,1741883442836,-500.0,0.00013698,2]
[356075423,1741883442846,-500.0,0.00013698,2]
[356075425,1741883442858,-500.0,0.00013698,2]
[356075427,1741883442868,-151.0,0.00013698,2]
[356075430,1741883442879,-151.0,0.00013698,2]
[356075433,1741883442888,-514.05135227,0.00013698,2]
[356075436,1741883442898,-2658.18,0.00013698,2]
[356075438,1741883442908,-500.0,0.00013698,2]
[356075439,1741883442919,-500.0,0.00013698,2]
[356075440,1741883442929,-500.0,0.00013698,2]
[356075441,1741883442939,-500.0,0.00013698,2]
[356075442,1741883442948,-500.0,0.00013698,2]
[356075443,1741883442958,-500.0,0.00013698,2]
[356075445,1741883442969,-517.62528467,0.00013698,2]
[356075447,1741883442980,-620.93,0.00013698,2]
[356075448,1741883442989,-184.41729203,0.00013698,2]
[356075449,1741883443001,-500.0,0.00013698,2]
[356075450,1741883443011,-500.0,0.00013698,2]
[356075452,1741883443021,-1676.33,0.00013698,2]
[356075454,1741883443031,-1470.91,0.00013698,2]
[356075455,1741883443041,-500.0,0.00013698,2]
[356075456,1741883443053,-500.0,0.00013698,2]
[356075457,1741883443063,-500.0,0.00013698,2]
[356075458,1741883443072,-892.28,0.00013698,2]
[356075459,1741883443082,-500.0,0.00013698,2]
[356075460,1741883443092,-500.0,0.00013698,2]
[356075461,1741883443101,-151.0,0.00013698,2]
[356075462,1741883443111,-500.0,0.00013698,2]
[356075463,1741883443123,-500.0,0.00013698,2]
[356075465,1741883443133,-1058.26,0.00013698,2]
[356075467,1741883443143,-500.0,0.00013698,2]
[356075469,1741883443152,-500.0,0.00013698,2]
[356075471,1741883443162,-500.0,0.00013698,2]
[356075473,1741883443172,-500.0,0.00013698,2]
[356075475,1741883443182,-500.0,0.00013698,2]
[356075477,1741883443192,-2021.72,0.00013698,2]
[356075480,1741883443201,-817.74,0.00013698,2]
[356075482,1741883443211,-563.91,0.00013698,2]
[356075484,1741883443221,-500.0,0.00013698,2]
[356075486,1741883443231,-500.0,0.00013698,2]
[356075488,1741883443240,-1368.31,0.00013698,2]
[356075490,1741883443250,-2898.69,0.00013698,2]
[356075492,1741883443259,-500.0,0.00013698,2]
[356075494,1741883443269,-500.0,0.00013698,2]
[356075496,1741883443278,-151.0,0.00013698,2]
[356075498,1741883443288,-684.57,0.00013698,2]
[356075500,1741883443298,-151.0,0.00013698,2]
[356075502,1741883443313,-151.0,0.00013698,2]
[356075504,1741883443323,-151.0,0.00013698,2]
[356075506,1741883443334,-500.0,0.00013698,2]
[356075508,1741883443344,-500.0,0.00013698,2]
[356075509,1741883443353,-177.491908,0.00013698,2]
[356075511,1741883443364,-1126.69,0.00013698,2]
[356075513,1741883443373,-1003.87,0.00013698,2]
[356075515,1741883443384,-500.0,0.00013698,2]
[356075517,1741883443394,-512.3775552,0.00013698,2]
[356075519,1741883443403,-500.0,0.00013698,2]
[356075520,1741883443412,-1040.66,0.00013698,2]
[356075522,1741883443422,-2145.86,0.00013698,2]
[356075524,1741883443431,-576.13,0.00013698,2]
[356075526,1741883443441,-500.0,0.00013698,2]
[356075528,1741883443451,-500.0,0.00013698,2]
[356075529,1741883443461,-301.341209,0.00013698,2]
[356075530,1741883443471,-1428.04,0.00013698,2]
[356075531,1741883443481,-151.0,0.00013698,2]
[356075532,1741883443490,-574.79985077,0.00013698,2]
[356075533,1741883443500,-151.0,0.00013698,2]
[356075534,1741883443509,-151.0,0.00013698,2]
[356075535,1741883443518,-151.0,0.00013698,2]
[356075536,1741883443527,-151.0,0.00013698,2]
[356075537,1741883443537,-151.0,0.00013698,2]
[356075538,1741883443546,-151.0,0.00013698,2]
[356075539,1741883443559,-151.0,0.00013698,2]
[356075540,1741883443568,-151.0,0.00013698,2]
[356075541,1741883443578,-151.0,0.00013698,2]
[356075542,1741883443587,-500.0,0.00013698,2]
[356075543,1741883443597,-151.0,0.00013698,2]
[356075544,1741883443606,-500.0,0.00013698,2]
[356075545,1741883443616,-151.0,0.00013698,2]
[356075546,1741883443626,-151.0,0.00013698,2]
[356075547,1741883443636,-151.0,0.00013698,2]
[356075548,1741883443646,-260.644289,0.00013698,2]
[356075549,1741883443656,-1655.17,0.00013698,2]
[356075550,1741883443666,-500.0,0.00013698,2]
[356075551,1741883443676,-598.72401286,0.00013698,2]
[356075552,1741883443685,-626.63272713,0.00013698,2]
[356075553,1741883443695,-11130.71,0.00013698,2]
[356075554,1741883443704,-500.0,0.00013698,2]
[356075555,1741883443714,-500.0,0.00013698,2]
[356075556,1741883443725,-500.0,0.00013698,2]
[356075557,1741883443738,-151.0,0.00013698,2]
[356075558,1741883443747,-2232.4,0.00013698,2]
[356075559,1741883443757,-151.0,0.00013698,2]
[356075560,1741883443767,-151.0,0.00013698,2]
[356075561,1741883443778,-151.0,0.00013698,2]
[356075562,1741883443788,-151.0,0.00013698,2]
[356075563,1741883443798,-500.0,0.00013698,2]
[356075564,1741883443808,-500.0,0.00013698,2]
[356075565,1741883443819,-3081.02,0.00013698,2]
[356075566,1741883443828,-2626.25,0.00013698,2]
[356075567,1741883443838,-500.0,0.00013698,2]
[356075568,1741883443848,-1254.74,0.00013698,2]
[356075569,1741883443858,-500.0,0.00013698,2]
[356075570,1741883443868,-1163.82,0.00013698,2]
[356075571,1741883443878,-500.0,0.00013698,2]
[356075572,1741883443887,-1914.01,0.00013698,2]
[356075573,1741883443897,-4082.2,0.00013698,2]
[356075574,1741883443906,-500.0,0.00013698,2]
[356075575,1741883443916,-3416.11,0.00013698,2]
[356075576,1741883443927,-1341.68,0.00013698,2]
[356075577,1741883443936,-543.95,0.00013698,2]
[356075578,1741883443946,-500.0,0.00013698,2]
[356075579,1741883443956,-500.0,0.00013698,2]
[356075580,1741883443965,-500.0,0.00013698,2]
[356075581,1741883443975,-3205.22,0.00013698,2]
[356075582,1741883443985,-543.78596001,0.00013698,2]
[356075583,1741883443996,-500.0,0.00013698,2]
[356075584,1741883444006,-500.0,0.00013698,2]
[356075585,1741883444015,-517.59,0.00013698,2]
[356075586,1741883444026,-12941.72,0.00013698,2]
[356075587,1741883444035,-150.29,0.00013698,2]
[356075588,1741883444045,-447.63712444,0.00013698,2]
[356075589,1741883444055,-500.0,0.00013698,2]
[356075590,1741883444064,-1589.78,0.00013698,2]
[356075591,1741883444073,-500.0,0.00013698,2]
[356075592,1741883444083,-500.0,0.00013698,2]
[356075593,1741883444092,-500.0,0.00013698,2]
[356075594,1741883444102,-830.34,0.00013698,2]
[356075595,1741883444112,-500.0,0.00013698,2]
[356075596,1741883444122,-500.0,0.00013698,2]
[356075597,1741883444131,-500.0,0.00013698,2]
[356075598,1741883444141,-151.0,0.00013698,2]
[356075599,1741883444151,-500.0,0.00013698,2]
[356075600,1741883444161,-151.0,0.00013698,2]
[356075601,1741883444171,-151.0,0.00013698,2]
[356075602,1741883444180,-151.0,0.00013698,2]
[356075603,1741883444189,-151.0,0.00013698,2]
[356075604,1741883444199,-151.0,0.00013698,2]
[356075605,1741883444208,-151.0,0.00013698,2]
[356075606,1741883444218,-151.0,0.00013698,2]
[356075607,1741883444227,-151.0,0.00013698,2]
[356075608,1741883444236,-151.0,0.00013698,2]
[356075609,1741883444246,-188.0,0.00013698,2]
[356075610,1741883444255,-3188.44,0.00013698,2]
[356075611,1741883444264,-151.0,0.00013698,2]
[356075612,1741883444273,-181.312826,0.00013698,2]
[356075613,1741883444283,-237.82570446,0.00013698,2]
[356075614,1741883444292,-500.0,0.00013698,2]
[356075615,1741883444302,-982.85,0.00013698,2]
[356075616,1741883444311,-2022.86,0.00013698,2]
[356075617,1741883444321,-500.0,0.00013698,2]
[356075618,1741883444331,-500.0,0.00013698,2]
[356075619,1741883444340,-505.93163436,0.00013698,2]
[356075620,1741883444350,-513.86,0.00013698,2]
[356075621,1741883444359,-500.0,0.00013698,2]
[356075622,1741883444368,-3265.14,0.00013698,2]
[356075623,1741883444378,-500.0,0.00013698,2]
[356075624,1741883444389,-500.0,0.00013698,2]
[356075625,1741883444399,-500.0,0.00013698,2]
[356075626,1741883444408,-783.53,0.00013698,2]
[356075627,1741883444418,-275.65876131,0.00013698,2]
[356075628,1741883444427,-1041.66,0.00013698,2]
[356075629,1741883444437,-215.7202819,0.00013698,2]
[356075630,1741883444446,-5492.41,0.00013698,2]
[356075631,1741883444456,-500.0,0.00013698,2]
[356075632,1741883444466,-17439.95,0.00013698,2]
[356075633,1741883444476,-3744.85,0.00013698,2]
[356075634,1741883444488,-500.0,0.00013698,2]
[356075635,1741883444498,-117072.63156847,0.00013698,2]
[356075636,1741883444937,-7692.04843153,0.00013698,2]
[356075637,1741883444947,-151.0,0.00013698,2]
[356075638,1741883444957,-275.501808,0.00013698,2]
[356075639,1741883444967,-500.0,0.00013698,2]
[356075640,1741883444977,-4705.84,0.00013698,2]
[356075641,1741883444989,-500.0,0.00013698,2]
[356075642,1741883444998,-534.49,0.00013698,2]
[356075643,1741883445008,-1037.39,0.00013698,2]
[356075644,1741883445018,-2585.31,0.00013698,2]
[356075645,1741883445027,-502.42842976,0.00013698,2]
[356075646,1741883445037,-2244.98,0.00013698,2]
[356075647,1741883445046,-500.0,0.00013698,2]
[356075648,1741883445058,-500.0,0.00013698,2]
[356075649,1741883445068,-500.0,0.00013698,2]
[356075650,1741883445077,-642.15,0.00013698,2]
[356075651,1741883445087,-500.0,0.00013698,2]
[356075652,1741883445096,-500.0,0.00013698,2]
[356075653,1741883445106,-434.31579111,0.00013698,2]
[356075654,1741883445116,-515.89818632,0.00013698,2]
[356075655,1741883445125,-500.0,0.00013698,2]
[356075656,1741883445135,-6529.72,0.00013698,2]
[356075657,1741883445144,-3897.82,0.00013698,2]
[356075658,1741883445153,-792.43,0.00013698,2]
[356075659,1741883445163,-500.0,0.00013698,2]
[356075660,1741883445173,-500.0,0.00013698,2]
[356075661,1741883445183,-500.0,0.00013698,2]
[356075662,1741883445193,-500.0,0.00013698,2]
[356075663,1741883445203,-573.07,0.00013698,2]
[356075664,1741883445213,-1417.72,0.00013698,2]
[356075665,1741883445225,-500.0,0.00013698,2]
[356075666,1741883445237,-659.44,0.00013698,2]
[356075667,1741883445247,-500.0,0.00013698,2]
[356075668,1741883445257,-154.148467,0.00013698,2]
[356075669,1741883445266,-4564.03,0.00013698,2]
[356075670,1741883445276,-1792.2,0.00013698,2]
[356075671,1741883445286,-500.0,0.00013698,2]
[356075672,1741883445295,-510.60354877,0.00013698,2]
[356075673,1741883445308,-8249.28,0.00013698,2]
[356075674,1741883445318,-510.40134383,0.00013698,2]
[356075675,1741883445327,-2087.49,0.00013698,2]
[356075676,1741883445337,-613.17676095,0.00013698,2]
[356075677,1741883445347,-500.0,0.00013698,2]
[356075678,1741883445356,-500.0,0.00013698,2]
[356075679,1741883445365,-500.0,0.00013698,2]
[356075680,1741883445375,-500.0,0.00013698,2]
[356075681,1741883445386,-500.0,0.00013698,2]
[356075682,1741883445396,-500.0,0.00013698,2]
[356075683,1741883445407,-500.0,0.00013698,2]
[356075684,1741883445417,-500.0,0.00013698,2]
[356075685,1741883445427,-2714.32,0.00013698,2]
[356075686,1741883445437,-1904.0,0.00013698,2]
[356075687,1741883445446,-500.0,0.00013698,2]
[356075688,1741883445456,-500.0,0.00013698,2]
[356075689,1741883445466,-1243.13,0.00013698,2]
[356075690,1741883445477,-104.37733081,0.00013698,2]
[356075706,1741883446354,-186.9182956,0.000135,2]
[356075707,1741883446364,-45.91266919,0.00013698,2]
[356075708,1741883446375,-2484.2,0.00013698,2]
[356075709,1741883446387,-150.29,0.00013698,2]
[356075710,1741883446398,-500.0,0.00013698,2]
[356075711,1741883446408,-500.0,0.00013698,2]
[356075712,1741883446417,-500.0,0.00013698,2]
[356075713,1741883446428,-1065.15,0.00013698,2]
[356075714,1741883446439,-500.0,0.00013698,2]
[356075715,1741883446449,-500.0,0.00013698,2]
[356075716,1741883446459,-500.0,0.00013698,2]
[356075717,1741883446470,-1645.31,0.00013698,2]
[356075718,1741883446480,-500.0,0.00013698,2]
[356075719,1741883446491,-1535.99,0.00013698,2]
[356075720,1741883446502,-3155.37,0.00013698,2]
[356075721,1741883446511,-500.0,0.00013698,2]
[356075722,1741883446520,-500.0,0.00013698,2]
[356075723,1741883446531,-500.0,0.00013698,2]
[356075724,1741883446541,-151.0,0.00013698,2]
[356075725,1741883446555,-151.0,0.00013698,2]
[356075726,1741883446566,-151.0,0.00013698,2]
[356075727,1741883446577,-500.0,0.00013698,2]
[356075728,1741883446593,-151.0,0.00013698,2]
[356075729,1741883446603,-500.0,0.00013698,2]
[356075730,1741883446613,-151.0,0.00013698,2]
[356075731,1741883446623,-151.0,0.00013698,2]
[356075732,1741883446634,-151.0,0.00013698,2]
[356075733,1741883446644,-244.835556,0.00013698,2]
[356075734,1741883446654,-500.0,0.00013698,2]
[356075735,1741883446663,-500.0,0.00013698,2]
[356075736,1741883446674,-500.0,0.00013698,2]
[356075737,1741883446684,-500.0,0.00013698,2]
[356075738,1741883446694,-562.95,0.00013698,2]
[356075739,1741883446704,-500.0,0.00013698,2]
[356075740,1741883446713,-500.0,0.00013698,2]
[356075741,1741883446725,-2179.94,0.00013698,2]
[356075742,1741883446737,-500.0,0.00013698,2]
[356075743,1741883446747,-500.0,0.00013698,2]
[356075744,1741883446756,-1029.97,0.00013698,2]
[356075745,1741883446767,-630.92,0.00013698,2]
[356075746,1741883446777,-942.45,0.00013698,2]
[356075747,1741883446787,-709.87,0.00013698,2]
[356075748,1741883446797,-500.0,0.00013698,2]
[356075749,1741883446810,-1000.0,0.00013698,2]
[356075750,1741883446822,-1000.0,0.00013698,2]
[356075751,1741883446832,-1000.0,0.00013698,2]
[356075752,1741883446842,-1000.0,0.00013698,2]
[356075753,1741883446852,-1000.0,0.00013698,2]
[356075754,1741883446861,-1000.0,0.00013698,2]
[356075755,1741883446871,-1020.09076912,0.00013698,2]
[356075756,1741883446881,-6064.02595669,0.00013698,2]
[356075758,1741884102838,-186.88883218,0.00010959,2]
[356075759,1741884153181,-168.0,0.00010959,2]
[356075760,1741884241813,-15.68,0.00010959,2]
[356075761,1741884241839,-184.32,0.00011463,2]
[356075762,1741884244808,-282.06692467,0.00011462,2]
[356075809,1741884572023,-150.0,0.0001136,2]
[356075810,1741884626361,-131.08637677,0.0001136,2]
[356075811,1741884626384,-18.91362323,0.0001136,2]
[356075856,1741884632409,-2428.08637677,0.0001136,2]
[356075858,1741884632420,-300.0,0.00011459,2]
[356075860,1741884632430,-500.0,0.0001146,2]
[356075862,1741884632439,-500.0,0.0001146,2]
[356075864,1741884632448,-500.0,0.0001146,2]
[356075866,1741884632457,-500.0,0.0001146,2]
[356075868,1741884632466,-250.0,0.0001146,2]
[356075870,1741884632476,-500.0,0.0001146,2]
[356075872,1741884632484,-500.0,0.0001146,2]
[356075874,1741884632493,-500.0,0.0001146,2]
[356075876,1741884632503,-500.0,0.0001146,2]
[356075878,1741884632513,-500.0,0.0001146,2]
[356075880,1741884632523,-500.0,0.0001146,2]
[356075882,1741884632532,-500.0,0.0001146,2]
[356075884,1741884632541,-500.0,0.0001146,2]
[356075886,1741884632550,-500.0,0.0001146,2]
[356075888,1741884632560,-24715.68,0.00011463,2]
[356075890,1741884632570,-500.0,0.00012055,2]
[356075892,1741884632579,-198.5017184,0.00012382,2]
[356075894,1741884632588,-53785.9709399,0.00012406,2]
[356075896,1741884632597,-168.0,0.00012488,2]
[356075898,1741884632607,-420.0,0.00012586,2]
[356075900,1741884632616,-1826.27528577,0.000129,2]
[356075902,1741884632625,-1826.27528571,0.00012979,2]
[356075904,1741884632634,-186.9182956,0.00013,2]
[356075907,1741884632643,-2329.0,0.00013,7]
[356075909,1741884632652,-216.564807,0.000131,2]
[356075911,1741884632661,-186.9182956,0.00013178,2]
[356075913,1741884632672,-1916.0,0.00013339,2]
[356075915,1741884632682,-540.0,0.00013339,2]
[356075917,1741884632692,-2271.0,0.00013339,2]
[356075919,1741884632701,-399.0,0.00013339,2]
[356075922,1741884632710,-186.9182956,0.000134,2]
[356075925,1741884632720,-418.83508192,0.00013424,2]
[356075928,1741884632731,-523.43355678,0.00013424,2]
[356075930,1741884632741,-152.0,0.00013466,2]
[356075932,1741884632750,-500.0,0.00013467,2]
[356075934,1741884632759,-306.32710118,0.00013599,2]
[356075937,1741884632779,-290.86317765,0.00013599,2]
[356076068,1741884638637,-11892.56270717,0.00013599,2]
[356076069,1741884638646,-2452.82629404,0.00013599,2]
[356076070,1741884638655,-2452.82629404,0.00013599,2]
[356076071,1741884638664,-2452.82629404,0.00013599,2]
[356076072,1741884638674,-2452.82629404,0.00013599,2]
[356076073,1741884638683,-2452.82629404,0.00013599,2]
[356076074,1741884638692,-2452.82629404,0.00013599,2]
[356076075,1741884638701,-2452.82629404,0.00013599,2]
[356076076,1741884638710,-2452.82629404,0.00013599,2]
[356076077,1741884638719,-2452.82629404,0.00013599,2]
[356076078,1741884638728,-1410.1331216,0.00013599,2]
[356076131,1741884640451,-1042.69317244,0.00013599,2]
[356076133,1741884640461,-2452.82629404,0.00013599,2]
[356076135,1741884640471,-2452.82629404,0.00013599,2]
[356076137,1741884640480,-2452.82629404,0.00013599,2]
[356076139,1741884640489,-2452.82629404,0.00013599,2]
[356076141,1741884640499,-2452.82629404,0.00013599,2]
[356076143,1741884640509,-2452.82629404,0.00013599,2]
[356076145,1741884640518,-2452.82629404,0.00013599,2]
[356076147,1741884640528,-2452.82629404,0.00013599,2]
[356076149,1741884640537,-2452.82629404,0.00013599,2]
[356076151,1741884640547,-2452.82,0.00013599,2]
[356076153,1741884640556,-516.97942432,0.00013599,2]
[356076154,1741884640565,-516.97942432,0.00013599,2]
[356076155,1741884640574,-516.97942432,0.00013599,2]
[356076156,1741884640583,-516.97942432,0.00013599,2]
[356076157,1741884640592,-516.97942432,0.00013599,2]
[356076159,1741884640601,-516.97942432,0.00013599,2]
[356076160,1741884640610,-516.97942432,0.00013599,2]
[356076161,1741884640620,-516.97942432,0.00013599,2]
[356076162,1741884640629,-516.97942432,0.00013599,2]
[356076163,1741884640638,-516.97942432,0.00013599,2]
[356076164,1741884640647,-516.97942432,0.00013599,2]
[356076165,1741884640656,-516.97942432,0.00013599,2]
[356076166,1741884640665,-516.97942432,0.00013599,2]
[356076167,1741884640676,-516.97942432,0.00013599,2]
[356076168,1741884640685,-516.97942432,0.00013599,2]
[356076169,1741884640694,-516.97942432,0.00013599,2]
[356076170,1741884640704,-516.97942432,0.00013599,2]
[356076171,1741884640714,-516.97942432,0.00013599,2]
[356076172,1741884640723,-516.97942432,0.00013599,2]
[356076174,1741884640733,-516.97,0.00013599,2]
[356076176,1741884640743,-902.81799284,0.00013599,2]
[356076178,1741884640752,-902.81799284,0.00013599,2]
[356076181,1741884640763,-902.81799284,0.00013599,2]
[356076183,1741884640773,-902.81799284,0.00013599,2]
[356076185,1741884640782,-902.81799284,0.00013599,2]
[356076187,1741884640792,-902.81799284,0.00013599,2]
[356076189,1741884640801,-902.81799284,0.00013599,2]
[356076191,1741884640810,-902.81799284,0.00013599,2]
[356076193,1741884640820,-902.81799284,0.00013599,2]
[356076195,1741884640830,-902.81799284,0.00013599,2]
[356076197,1741884640840,-902.81799284,0.00013599,2]
[356076199,1741884640849,-902.81799284,0.00013599,2]
[356076201,1741884640859,-902.81799284,0.00013599,2]
[356076203,1741884640868,-902.81799284,0.00013599,2]
[356076205,1741884640879,-902.81799284,0.00013599,2]
[356076207,1741884640888,-902.81799284,0.00013599,2]
[356076209,1741884640898,-902.81799284,0.00013599,2]
[356076211,1741884640907,-902.81799284,0.00013599,2]
[356076213,1741884640917,-902.81799284,0.00013599,2]
[356076215,1741884640926,-902.81,0.00013599,2]
[356076217,1741884640936,-186.9182956,0.000136,2]
[356076219,1741884640946,-186.9182956,0.000136,2]
[356076221,1741884640955,-186.9182956,0.000136,2]
[356076223,1741884640964,-186.9182956,0.000136,2]
[356076225,1741884640974,-731.12330801,0.00013606,2]
[356076227,1741884640983,-153.95185456,0.00013672,2]
[356076229,1741884640992,-500.0,0.00013673,2]
[356076231,1741884641001,-500.0,0.00013673,2]
[356076233,1741884641011,-500.0,0.00013673,2]
[356076235,1741884641020,-500.0,0.00013673,2]
[356076237,1741884641029,-500.0,0.00013673,2]
[356076239,1741884641039,-500.0,0.00013673,2]
[356076241,1741884641048,-500.0,0.00013673,2]
[356076243,1741884641057,-500.0,0.00013673,2]
[356076245,1741884641067,-500.0,0.00013673,2]
[356076247,1741884641075,-500.0,0.00013673,2]